bitfinex-derivatives/quotes_SOLF0:USTF0_20260218
["timestamp","ask_amount","ask_price","bid_price","bid_amount"]
[1771433559184,3.03613376,82.15,82.107,19.19179819]
[1771433559577,19.09578563,82.146,82.091,19.19179819]
[1771433560085,19.09578563,82.146,82.101,19.19179819]
[1771433560687,10.9612,82.145,82.103,10.9667]
[1771433563290,10.9612,82.145,82.1,3.03613376]
[1771433563291,10.9612,82.145,82.105,10.9664]
[1771433563490,10.9612,82.145,82.105,30.15819819]
[1771433564792,10.9612,82.145,82.107,10.9662]
[1771433564992,10.9612,82.145,82.108,17.53440749]
[1771433566094,10.9619,82.14,82.108,17.53440749]
[1771433566593,10.9619,82.14,82.095,17.53440749]
[1771433566594,21.22910479,82.14,82.095,17.53440749]
[1771433567891,10.9627,82.133,82.095,17.53440749]
[1771433568196,36.53,82.17,82.075,106.25727079]
[1771433568197,3.03613376,82.11,82.075,5.11727079]
[1771433568396,21.2081861,82.11,82.075,5.11727079]
[1771433568697,18.17205234,82.123,82.076,17.53440749]
[1771433568892,3.03613376,82.11,82.076,17.53440749]
[1771433569088,21.2081861,82.12,82.076,17.53440749]
[1771433569290,18.11361881,82.118,82.075,5.11727079]
[1771433569487,21.14975257,82.11,82.075,5.11727079]
[1771433569691,18.11361881,82.125,82.076,17.53440749]
[1771433570295,10.9649,82.117,82.076,17.53440749]
[1771433570496,18.11361881,82.125,82.076,17.53440749]
[1771433571400,29.07751881,82.125,82.081,17.53440749]
[1771433572000,20.93757477,82.13,82.08,20.57100821]
[1771433572297,17.90097405,82.119,82.075,5.11727079]
[1771433573802,10.965,82.117,82.075,5.11727079]
[1771433575902,10.965,82.117,82.076,17.53440749]
[1771433577208,10.966,82.109,82.076,17.53440749]
[1771433577602,10.9669,82.102,82.075,5.11727079]
[1771433577804,16.90841827,82.109,82.075,5.11727079]
[1771433578000,16.90841827,82.129,82.076,17.87976243]
[1771433578200,16.90841827,82.119,82.078,10.97]
[1771433579110,10.9648,82.118,82.078,10.97]
[1771433579806,10.9659,82.11,82.077,17.87976243]
[1771433580011,16.90841827,82.118,82.077,17.87976243]
[1771433580602,16.90841827,82.129,82.083,17.87976243]
[1771433580803,19.94501899,82.12,82.076,75.3725]
[1771433581008,3.03660072,82.11,82.076,75.3725]
[1771433581204,19.94501899,82.11,82.075,5.11727079]
[1771433582199,16.90841827,82.099,82.075,7.079e-05]
[1771433582804,16.90841827,82.112,82.075,7.079e-05]
[1771433583711,27.87401827,82.112,82.075,7.079e-05]
[1771433584104,3.03660072,82.11,82.075,7.079e-05]
[1771433584607,27.8708887,82.102,82.075,7.079e-05]
[1771433585810,10.9676,82.097,82.075,7.079e-05]
[1771433586314,10.9676,82.097,82.08,0.07689981]
[1771433588604,10.9685,82.09,82.075,7.079e-05]
[1771433590512,16.76944866,82.089,82.075,7.079e-05]
[1771433591210,10.9692,82.085,82.075,7.079e-05]
[1771433591915,10.97,82.079,82.075,7.079e-05]
[1771433592110,10.97,82.079,82.043,17.87976243]
[1771433593012,0.07689124,82.069,82.045,10.9744]
[1771433593812,0.07689124,82.069,82.043,17.87976243]
[1771433594716,0.07689124,82.069,82.036,75.3725]
[1771433595116,16.21136435,82.069,82.03,17.87976243]
[1771433595313,10.9724,82.061,82.023,10.9773]
[1771433595520,19.17107383,82.06,82.019,16.95667887]
[1771433595817,19.17107383,82.06,82.01,19.99327959]
[1771433596117,10.9735,82.053,82.014,10.9786]
[1771433596522,10.9735,82.053,82.014,27.93527887]
[1771433596927,16.13447311,82.049,82.0,16.95667887]
[1771433597219,16.13447311,82.049,82.0,19.99327959]
[1771433597411,0.07702908,82.045,82.0,19.99327959]
[1771433599326,10.9747,82.044,82.0,19.99327959]
[1771433599526,0.07702908,82.045,82.0,19.99327959]
[1771433600629,0.07702908,82.045,82.0,16.95667887]
[1771433600829,14.82876181,82.045,82.0,16.95667887]
[1771433601030,10.9753,82.039,82.0,16.95667887]
[1771433601227,0.07702908,82.045,82.0,19.99327959]
[1771433601630,3.03660072,82.08,82.021,16.95667887]
[1771433601822,3.03660072,82.08,82.026,16.95667887]
[1771433602432,10.9716,82.067,82.028,16.95667887]
[1771433602741,3.03660072,82.09,82.041,16.95667887]
[1771433602925,14.67147905,82.113,82.061,16.95667887]
[1771433603126,3.03660072,82.12,82.071,16.95667887]
[1771433603325,10.9657,82.111,82.073,16.95667887]
[1771433603924,3.03660072,82.14,82.091,16.95667887]
[1771433605629,3.03660072,82.16,82.101,16.95667887]
[1771433605833,3.03660072,82.16,82.111,16.95667887]
[1771433606031,13.70598527,82.17,82.111,16.95667887]
[1771433606624,10.961,82.146,82.111,16.95667887]
[1771433606826,16.13447311,82.159,82.07,8.12900918]
[1771433607132,170.422,82.186,82.05,8.12900918]
[1771433607133,16.13447311,82.139,82.05,8.12900918]
[1771433607333,16.13447311,82.139,82.051,76.64]
[1771433607532,16.13447311,82.139,82.05,8.12900918]
[1771433607826,16.13447311,82.139,82.051,76.64]
[1771433608031,16.13447311,82.134,82.07,8.12900918]
[1771433608230,16.13447311,82.159,82.07,8.12900918]
[1771433608434,16.13447311,82.159,82.071,76.64]
[1771433608626,16.13447311,82.159,82.093,10.9681]
[1771433608835,16.13447311,82.159,82.094,16.95667887]
[1771433609023,16.13447311,82.159,82.108,16.95667887]
[1771433609931,16.13447311,82.165,82.108,16.95667887]
[1771433610331,16.13447311,82.165,82.091,16.95667887]
[1771433610630,16.13447311,82.15,82.091,16.95667887]
[1771433610835,16.13447311,82.149,82.075,16.95667887]
[1771433611225,10.9634,82.128,82.075,16.95667887]
[1771433611937,10.9622,82.137,82.075,16.95667887]
[1771433612535,10.9622,82.137,82.085,16.95667887]
[1771433613139,27.09517311,82.149,82.091,16.95667887]
[1771433613532,10.9607,82.149,82.091,16.95667887]
[1771433614030,10.9607,82.149,82.096,16.95667887]
[1771433615040,10.9595,82.157,82.107,16.95667887]
[1771433616642,10.9585,82.165,82.109,16.95667887]
[1771433617234,16.13447311,82.165,82.119,10.9645]
[1771433617630,16.13447311,82.165,82.109,16.95667887]
[1771433617836,16.13447311,82.165,82.09,8.12900918]
[1771433617837,16.13447311,82.165,82.11,16.95667887]
[1771433618835,10.9588,82.163,82.114,27.92177887]
[1771433619032,16.13447311,82.165,82.115,16.95667887]
[1771433619735,16.13447311,82.165,82.117,16.95667887]
[1771433620746,10.9587,82.164,82.12,16.95667887]
[1771433621242,16.13447311,82.165,82.122,10.9641]
[1771433622541,16.13447311,82.165,82.09,8.12900918]
[1771433622542,16.13447311,82.183,82.124,16.95667887]
[1771433622841,16.13447311,82.183,82.126,16.95667887]
[1771433624341,5.0,82.185,82.126,16.95667887]
[1771433624342,16.13447311,82.184,82.126,16.95667887]
[1771433625136,14.24525063,82.173,82.125,75.3725]
[1771433625340,14.24525063,82.173,82.111,14.12713595]
[1771433625737,10.9584,82.166,82.126,10.9636]
[1771433626134,14.24525063,82.165,82.112,75.3725]
[1771433626338,25.20395063,82.164,82.119,10.9646]
[1771433626942,14.24525063,82.163,82.112,89.49963595]
[1771433627243,14.24525063,82.163,82.097,14.12713595]
[1771433628544,25.20615063,82.147,82.102,10.9667]
[1771433628848,14.24525063,82.146,82.102,10.9667]
[1771433629442,10.9599,82.154,82.111,14.12713595]
[1771433630045,10.9608,82.148,82.111,14.12713595]
[1771433630249,10.9608,82.148,82.103,10.9667]
[1771433630642,14.24525063,82.142,82.083,14.12713595]
[1771433631751,10.9633,82.129,82.086,10.9689]
[1771433632142,14.24525063,82.129,82.083,14.12713595]
[1771433633850,10.9646,82.119,82.083,14.12713595]
[1771433635349,10.9636,82.127,82.083,14.12713595]
[1771433635746,14.32504469,82.146,82.085,14.65840069]
[1771433635948,10.9616,82.142,82.085,14.65840069]
[1771433636149,8.13430546,82.18,82.086,14.65840069]
[1771433636150,14.32504469,82.147,82.086,14.65840069]
[1771433636350,14.32504469,82.147,82.089,14.65840069]
[1771433636548,10.9646,82.12,82.071,14.65840069]
[1771433637055,10.9632,82.13,82.081,14.65840069]
[1771433637253,14.32504469,82.155,82.091,14.65840069]
[1771433637454,14.32504469,82.155,82.09,8.13430546]
[1771433637455,14.32504469,82.155,82.097,14.65840069]
[1771433637659,14.32504469,82.155,82.071,14.65840069]
[1771433638051,10.964,82.124,82.071,14.65840069]
[1771433638354,10.964,82.124,82.08,10.9697]
[1771433638658,10.964,82.124,82.081,14.65840069]
[1771433640256,14.32504469,82.146,82.084,14.65840069]
[1771433641260,14.32504469,82.146,82.102,10.9668]
[1771433642059,14.32504469,82.146,82.108,10.966]
[1771433642247,14.32504469,82.146,82.098,14.65840069]
[1771433643653,10.9611,82.145,82.101,10.9669]
[1771433644158,10.9611,82.145,82.102,14.65840069]
[1771433644358,14.32504469,82.146,82.105,10.9664]
[1771433645356,14.32504469,82.146,82.112,10.9655]
[1771433645657,14.32504469,82.146,82.105,14.65840069]
[1771433646460,10.9612,82.145,82.105,25.62480069]
[1771433647155,10.9599,82.155,82.113,14.65840069]
[1771433648256,14.32504469,82.154,82.113,14.65840069]
[1771433648456,10.9603,82.152,82.117,10.9647]
[1771433650266,25.28554469,82.15,82.11,10.9657]
[1771433650860,14.32504469,82.143,82.106,75.3725]
[1771433651663,10.9617,82.141,82.106,75.3725]
[1771433652463,10.9617,82.141,82.1,10.967]
[1771433652464,10.9617,82.141,82.1,14.00166903]
[1771433653370,25.28674469,82.141,82.1,14.00166903]
[1771433653667,14.32504469,82.141,82.106,10.9663]
[1771433654359,14.32504469,82.141,82.1,3.03466903]
[1771433654559,14.32504469,82.139,82.091,75.3725]
[1771433654761,10.9626,82.135,82.092,14.65840069]
[1771433654959,14.32504469,82.139,82.099,10.9672]
[1771433655164,14.32504469,82.139,82.1,13.11046757]
[1771433655956,10.9621,82.138,82.103,10.9667]
[1771433656161,13.49087675,82.153,82.111,13.11046757]
[1771433656565,13.49087675,82.169,82.111,13.11046757]
[1771433656867,13.49087675,82.149,82.1,3.03466903]
[1771433657069,13.49087675,82.149,82.098,13.11046757]
[1771433657263,13.49087675,82.139,82.09,3.03466903]
[1771433657463,10.9632,82.13,82.092,10.9681]
[1771433657770,16.52554578,82.13,82.083,13.11046757]
[1771433658269,10.9643,82.121,82.083,13.11046757]
[1771433658470,16.52554578,82.12,82.07,16.1451366]
[1771433659460,10.9668,82.103,82.07,13.11046757]
[1771433660660,13.49087675,82.108,82.07,16.1451366]
[1771433660864,13.49087675,82.121,82.07,16.1451366]
[1771433661171,13.49087675,82.121,82.031,30.13704255]
[1771433661172,13.49087675,82.121,82.081,13.11046757]
[1771433661969,10.9638,82.125,82.09,3.03466903]
[1771433662168,10.9638,82.125,82.086,13.11046757]
[1771433663060,13.49087675,82.139,82.08,3.03466903]
[1771433663061,10.9629,82.132,82.089,13.11046757]
[1771433663360,13.49087675,82.129,82.071,13.11046757]
[1771433663761,13.49087675,82.123,82.071,13.11046757]
[1771433664670,13.49087675,82.123,82.08,14.00436903]
[1771433665270,10.9643,82.122,82.08,14.00436903]
[1771433665865,13.49087675,82.123,82.086,10.9689]
[1771433666065,13.49087675,82.119,82.071,13.11046757]
[1771433666772,13.49087675,82.115,82.073,10.9706]
[1771433668982,13.49087675,82.115,82.074,13.11046757]
[1771433669183,10.9654,82.113,82.074,13.11046757]
[1771433670884,10.9654,82.113,82.076,10.9703]
[1771433671791,10.9646,82.12,82.082,13.11046757]
[1771433671987,13.49087675,82.129,82.082,13.11046757]
[1771433672388,13.49087675,82.139,82.091,13.11046757]
[1771433673790,10.9636,82.127,82.091,13.11046757]
[1771433676093,13.49087675,82.142,82.101,13.11046757]
[1771433677394,13.49087675,82.142,82.105,10.9664]
[1771433678686,10.9615,82.143,82.1,3.03466903]
[1771433678687,10.9615,82.143,82.108,10.966]
[1771433678896,13.99516903,82.15,82.109,13.11046757]
[1771433679994,10.9605,82.15,82.111,13.11046757]
[1771433680588,13.49087675,82.155,82.12,3.03466903]
[1771433680793,13.49087675,82.155,82.116,13.11046757]
[1771433681697,13.49087675,82.155,82.117,10.9648]
[1771433682390,10.9601,82.153,82.116,13.11046757]
[1771433682596,16.52554578,82.15,82.097,13.11046757]
[1771433683487,16.52554578,82.15,82.1,3.03466903]
[1771433683689,13.49087675,82.146,82.104,10.9665]
[1771433683896,3.03466903,82.14,82.104,10.9665]
[1771433684094,13.49087675,82.146,82.104,10.9665]
[1771433684595,77.8,82.167,82.107,24.07656757]
[1771433684596,13.49087675,82.152,82.107,24.07656757]
[1771433684790,13.49087675,82.149,82.107,24.07656757]
[1771433685684,11.21235924,82.139,82.1,10.967]
[1771433686091,10.9622,82.138,82.094,10.71078363]
[1771433686287,3.03466903,82.14,82.094,10.71078363]
[1771433686288,11.21235924,82.137,82.094,10.71078363]
[1771433686890,3.03466903,82.13,82.094,10.71078363]
[1771433687391,11.21235924,82.137,82.094,10.71078363]
[1771433687891,11.21235924,82.135,82.094,10.71078363]
[1771433688392,11.21235924,82.131,82.094,10.71078363]
[1771433688699,3.03466903,82.13,82.094,10.71078363]
[1771433689194,3.03466903,82.13,82.095,10.9678]
[1771433689397,11.21235924,82.131,82.095,10.9678]
[1771433689587,11.21235924,82.143,82.094,10.71078363]
[1771433689795,11.21235924,82.143,82.108,10.966]
[1771433689987,11.21235924,82.159,82.108,10.966]
[1771433690792,3.03466903,82.15,82.108,10.966]
[1771433691593,10.9607,82.148,82.108,10.966]
[1771433691797,11.21235924,82.148,82.101,21.67778363]
[1771433692099,10.9616,82.142,82.102,10.71078363]
[1771433692994,11.21235924,82.148,82.102,10.71078363]
[1771433693200,11.21235924,82.148,82.11,13.74663093]
[1771433693402,11.21235924,82.148,82.11,10.71078363]
[1771433694703,10.9611,82.146,82.11,10.71078363]
[1771433698000,10.9597,82.156,82.117,10.39323347]
[1771433698211,10.9597,82.156,82.121,10.39323347]
[1771433698411,9.92085111,82.186,82.131,10.39323347]
[1771433698698,14.9152935,82.218,82.131,10.39323347]
[1771433698699,10.9572,82.175,82.139,10.9618]
[1771433698896,9.92085111,82.184,82.141,10.39323347]
[1771433699697,9.92085111,82.179,82.141,10.39323347]
[1771433700799,20.87765111,82.178,82.141,10.39323347]
[1771433701104,11.29082519,82.223,82.097,21.9351]
[1771433701105,9.92085111,82.169,82.113,10.39323347]
[1771433702507,10.9591,82.161,82.125,10.9637]
[1771433702900,9.92085111,82.169,82.125,10.9637]
[1771433703801,10.9581,82.168,82.125,10.9637]
[1771433704405,10.959,82.161,82.124,10.39323347]
[1771433704919,9.92085111,82.16,82.124,10.39323347]
[1771433705105,9.92085111,82.16,82.125,10.9638]
[1771433708107,10.9581,82.168,82.12,3.0358473]
[1771433708108,10.9581,82.168,82.131,10.39323347]
[1771433708808,36.53,82.201,82.112,75.3725]
[1771433708809,9.92085111,82.197,82.15,3.0358473]
[1771433709111,9.92085111,82.197,82.151,10.39323347]
[1771433709707,10.955,82.191,82.152,10.39323347]
[1771433709909,9.92085111,82.197,82.152,10.39323347]
[1771433710709,9.92085111,82.197,82.157,10.9594]
[1771433710904,9.92085111,82.197,82.158,10.39323347]
[1771433711501,10.954,82.199,82.132,99.56]
[1771433711502,9.92085111,82.205,82.167,10.39323347]
[1771433711707,9.92085111,82.199,82.153,10.39323347]
[1771433712510,10.9557,82.186,82.153,10.39323347]
[1771433712723,9.92085111,82.185,82.144,10.9612]
[1771433713716,9.92085111,82.185,82.046,37.58137099]
[1771433713717,3.0358473,82.17,82.126,10.39323347]
[1771433713908,9.92085111,82.159,82.111,10.39323347]
[1771433714113,10.9614,82.143,82.105,10.9664]
[1771433714410,12.95669841,82.13,82.085,10.39323347]
[1771433714602,9.92085111,82.129,82.085,10.39323347]
[1771433714809,3.0358473,82.12,82.085,10.39323347]
[1771433715005,8.84866422,82.144,82.091,9.28261756]
[1771433715217,8.84866422,82.159,82.101,9.28261756]
[1771433716813,10.9598,82.155,82.105,9.28261756]
[1771433717719,8.84866422,82.159,82.112,9.28261756]
[1771433718218,8.84866422,82.159,82.113,9.28261756]
[1771433718219,10.9595,82.157,82.113,9.28261756]
[1771433719014,8.84866422,82.156,82.099,9.28261756]
[1771433719716,10.9608,82.148,82.1,20.24971756]
[1771433719925,8.84866422,82.147,82.1,20.24971756]
[1771433721613,8.84866422,82.147,82.105,9.28261756]
[1771433721922,10.9598,82.156,82.105,9.28261756]
[1771433722420,8.84866422,82.161,82.115,9.28261756]
[1771433722623,8.84866422,82.161,82.087,9.28261756]
[1771433723815,8.84866422,82.161,82.098,9.28261756]
[1771433725510,10.9599,82.155,82.103,9.28261756]
[1771433725716,19.80856422,82.155,82.103,9.28261756]
[1771433725917,8.84866422,82.169,82.103,9.28261756]
[1771433726316,10.9581,82.168,82.122,9.28261756]
[1771433727224,8.84866422,82.161,82.121,10.9642]
[1771433727425,8.84866422,82.161,82.113,10.9653]
[1771433728727,19.80786422,82.16,82.113,10.9653]
[1771433729025,8.84866422,82.159,82.107,9.28261756]
[1771433730024,8.84866422,82.159,82.108,12.18]
[1771433730221,8.84866422,82.159,82.107,9.28261756]
[1771433730820,10.96,82.154,82.109,10.9659]
[1771433731225,10.96,82.154,82.109,23.1459]
[1771433731627,10.96,82.154,82.109,32.42851756]
[1771433732128,8.84866422,82.159,82.112,9.28261756]
[1771433732428,8.13051736,82.19,82.112,9.28261756]
[1771433732429,8.84866422,82.174,82.112,9.28261756]
[1771433732725,8.84866422,82.174,82.11,12.18]
[1771433732726,8.84866422,82.174,82.125,9.28261756]
[1771433733425,8.84866422,82.174,82.057,179.0]
[1771433733426,8.84866422,82.202,82.15,9.28261756]
[1771433733631,8.84866422,82.228,82.15,9.28261756]
[1771433734325,19.80136422,82.209,82.161,9.28261756]
[1771433735621,19.80136422,82.209,82.169,10.9578]
[1771433735826,10.9527,82.209,82.17,9.28261756]
[1771433738032,10.9536,82.202,82.16,3.03081713]
[1771433738427,10.9536,82.202,82.161,9.28261756]
[1771433738623,11.87948135,82.21,82.162,9.28261756]
[1771433738824,8.84866422,82.223,82.171,9.28261756]
[1771433739231,8.84866422,82.223,82.182,20.23881756]
[1771433739426,10.9504,82.226,82.183,9.28261756]
[1771433739734,5.0,82.235,82.19,3.03081713]
[1771433739929,5.0,82.235,82.19,12.31343469]
[1771433740826,5.0,82.235,82.092,243.32]
[1771433740827,13.84866422,82.235,82.135,9.28261756]
[1771433741027,13.84866422,82.235,82.184,9.28261756]
[1771433741028,3.03081713,82.23,82.184,9.28261756]
[1771433741221,8.84866422,82.226,82.181,10.9562]
[1771433742423,8.84866422,82.226,82.189,10.9552]
[1771433742624,8.84866422,82.226,82.18,3.03081713]
[1771433742831,5.0,82.235,82.164,9.28261756]
[1771433742832,8.84866422,82.207,82.164,9.28261756]
[1771433744224,10.9531,82.206,82.164,20.24111756]
[1771433744429,8.84866422,82.219,82.165,9.28261756]
[1771433744834,8.84866422,82.219,82.17,3.03081713]
[1771433745730,10.9519,82.214,82.172,10.9575]
[1771433747239,10.9527,82.209,82.17,3.03081713]
[1771433747429,10.9527,82.209,82.165,9.28261756]
[1771433747827,19.09183708,82.209,82.165,9.28261756]
[1771433750032,8.13913708,82.223,82.18,3.03081713]
[1771433750231,8.13913708,82.223,82.181,8.12504504]
[1771433751738,10.9509,82.222,82.181,8.12504504]
[1771433753132,5.0,82.235,82.19,11.15586217]
[1771433753834,10.9494,82.233,82.191,10.9549]
[1771433754931,5.0,82.235,82.18,10.9564]
[1771433754932,10.951,82.221,82.18,10.9564]
[1771433755337,10.951,82.221,82.18,19.08144504]
[1771433755838,8.13913708,82.217,82.17,3.02922628]
[1771433756638,10.9525,82.21,82.166,20.30504504]
[1771433756841,3.02922628,82.21,82.166,8.12504504]
[1771433757032,11.16836336,82.21,82.166,8.12504504]
[1771433757632,7.53556138,82.209,82.166,8.12504504]
[1771433757832,10.9534,82.204,82.166,8.12504504]
[1771433758045,7.53556138,82.203,82.16,10.9591]
[1771433758232,10.954,82.199,82.153,7.68710114]
[1771433758434,10.954,82.199,82.154,83.05960114]
[1771433758844,10.954,82.199,82.155,7.68710114]
[1771433759144,7.53556138,82.203,82.156,18.64660114]
[1771433759342,7.53556138,82.203,82.16,3.02922628]
[1771433759836,7.53556138,82.201,82.16,3.02922628]
[1771433760343,7.53556138,82.201,82.156,18.64660114]
[1771433760846,10.9539,82.2,82.156,18.64660114]
[1771433761144,7.53556138,82.201,82.162,7.68710114]
[1771433761532,10.9517,82.216,82.174,7.68710114]
[1771433761738,7.53556138,82.229,82.181,7.68710114]
[1771433762636,10.9504,82.226,82.181,7.68710114]
[1771433764742,10.9504,82.226,82.182,10.9562]
[1771433766345,7.53556138,82.219,82.171,75.3725]
[1771433767639,10.952,82.214,82.172,10.9575]
[1771433770748,10.9544,82.196,82.171,75.3725]
[1771433770952,7.53556138,82.195,82.154,83.05960114]
[1771433771148,7.53556138,82.195,82.154,7.68710114]
[1771433771352,7.53556138,82.209,82.161,7.68710114]
[1771433772658,10.9535,82.202,82.162,10.9588]
[1771433773347,10.9528,82.208,82.171,10.9576]
[1771433773551,7.53556138,82.209,82.17,3.02922628]
[1771433773856,7.53556138,82.209,82.163,7.68710114]
[1771433774360,7.53556138,82.209,82.166,7.68710114]
[1771433775655,10.9535,82.203,82.166,7.68710114]
[1771433776951,10.9535,82.203,82.16,3.02922628]
[1771433776952,10.9535,82.203,82.168,7.13843174]
[1771433777554,7.24388274,82.223,82.176,7.13843174]
[1771433777761,7.24388274,82.223,82.155,12.18]
[1771433777762,7.24388274,82.223,82.18,10.16765802]
[1771433777952,5.0,82.235,82.191,7.13843174]
[1771433778151,7.24388274,82.234,82.191,7.13843174]
[1771433778558,3.02922628,82.23,82.191,7.13843174]
[1771433778758,10.9507,82.223,82.191,7.13843174]
[1771433780357,10.9516,82.217,82.18,13.98562628]
[1771433780552,10.9516,82.217,82.166,79.66]
[1771433780553,7.24388274,82.209,82.152,7.13843174]
[1771433780752,3.02922628,82.21,82.152,7.13843174]
[1771433780753,7.24388274,82.199,82.152,7.13843174]
[1771433780954,10.9547,82.193,82.153,10.96]
[1771433781255,10.9547,82.193,82.154,7.13843174]
[1771433781555,10.9547,82.193,82.16,3.02922628]
[1771433781959,7.24388274,82.209,82.161,7.13843174]
[1771433782356,7.24388274,82.209,82.16,3.02922628]
[1771433782357,7.24388274,82.209,82.166,10.9582]
[1771433782558,7.24388274,82.209,82.17,3.02922628]
[1771433783459,10.9529,82.207,82.17,3.02922628]
[1771433783655,10.9529,82.207,82.167,7.13843174]
[1771433784358,10.9539,82.2,82.167,7.13843174]
[1771433784558,10.9539,82.2,82.162,10.9588]
[1771433784759,7.24388274,82.209,82.161,7.13843174]
[1771433785865,10.953,82.207,82.168,10.958]
[1771433786065,41.53,82.235,82.171,7.13843174]
[1771433786066,7.24388274,82.222,82.171,7.13843174]
[1771433787561,10.9518,82.215,82.175,10.957]
[1771433787771,7.24388274,82.219,82.171,7.13843174]
[1771433788067,5.0,82.235,82.151,75.3725]
[1771433788068,7.24388274,82.201,82.161,10.9589]
[1771433788855,7.24388274,82.201,82.157,7.13843174]
[1771433789060,7.24388274,82.201,82.16,3.02922628]
[1771433789268,7.24388274,82.201,82.16,10.16765802]
[1771433789467,7.24388274,82.201,82.161,7.13843174]
[1771433790660,7.24388274,82.201,82.163,10.9586]
[1771433792269,10.9527,82.208,82.17,3.02922628]
[1771433792667,7.24388274,82.214,82.17,3.02922628]
[1771433792864,7.24388274,82.196,82.152,75.3725]
[1771433793071,7.24388274,82.196,82.15,3.02922628]
[1771433793467,10.27310902,82.18,82.135,7.13843174]
[1771433793667,7.24388274,82.179,82.13,3.02922628]
[1771433793868,7.24388274,82.179,82.12,10.16765802]
[1771433794073,7.24388274,82.179,82.121,7.13843174]
[1771433794371,7.24388274,82.179,82.13,3.02922628]
[1771433794672,10.9577,82.171,82.13,3.02922628]
[1771433795364,7.24388274,82.179,82.131,7.13843174]
[1771433795365,18.20048274,82.179,82.131,7.13843174]
[1771433795972,7.24388274,82.178,82.131,7.13843174]
[1771433796772,10.9574,82.174,82.131,18.10143174]
[1771433797765,7.24388274,82.178,82.138,10.962]
[1771433798274,10.9564,82.181,82.139,7.13843174]
[1771433798472,10.9564,82.181,82.143,7.13843174]
[1771433799374,10.9554,82.188,82.144,10.9612]
[1771433799572,7.24388274,82.203,82.151,7.13843174]
[1771433800671,10.9542,82.197,82.155,10.9597]
[1771433800880,10.9542,82.197,82.155,18.09813174]
[1771433801478,18.19808274,82.197,82.156,7.13843174]
[1771433801864,18.19808274,82.197,82.157,10.9595]
[1771433802071,7.24388274,82.211,82.17,3.02922628]
[1771433802966,18.19628274,82.211,82.165,7.13843174]
[1771433803171,18.19628274,82.211,82.17,3.02922628]
[1771433803675,18.19628274,82.211,82.165,7.13843174]
[1771433803872,7.24388274,82.211,82.165,7.13843174]
[1771433804066,7.24388274,82.199,82.157,10.9595]
[1771433805171,7.24388274,82.199,82.163,10.9586]
[1771433810081,10.9531,82.206,82.167,6.08993602]
[1771433810884,17.53081844,82.216,82.176,6.08993602]
[1771433812881,6.57901844,82.216,82.178,6.08993602]
[1771433813585,10.9518,82.215,82.179,10.9565]
[1771433814478,6.57901844,82.216,82.179,10.9565]
[1771433816782,47.82082519,82.248,82.163,12.18]
[1771433816783,10.9502,82.227,82.18,3.03035046]
[1771433816977,6.57901844,82.229,82.18,3.03035046]
[1771433816978,6.57901844,82.229,82.181,6.08993602]
[1771433817872,10.9501,82.228,82.187,10.9554]
[1771433818073,6.08749639,82.227,82.18,3.03035046]
[1771433818277,6.08749639,82.227,82.171,5.72638364]
[1771433818579,6.08749639,82.238,82.191,5.72638364]
[1771433818775,11.08749639,82.235,82.191,5.72638364]
[1771433819488,6.08749639,82.234,82.191,5.72638364]
[1771433819684,10.9494,82.233,82.196,10.9543]
[1771433819883,6.08749639,82.209,82.16,3.03035046]
[1771433820078,6.08749639,82.209,82.161,5.72638364]
[1771433821181,6.08749639,82.209,82.151,5.72638364]
[1771433821382,6.08749639,82.209,82.16,8.7567341]
[1771433821578,6.08749639,82.207,82.167,10.9582]
[1771433822286,6.08749639,82.207,82.173,10.9573]
[1771433823489,10.9519,82.215,82.178,10.9566]
[1771433823692,6.08749639,82.219,82.178,10.9566]
[1771433824191,6.08749639,82.216,82.178,10.9566]
[1771433825891,10.9521,82.213,82.178,10.9566]
[1771433826784,6.08749639,82.216,82.178,10.9566]
[1771433828393,6.08749639,82.214,82.175,10.9571]
[1771433828785,6.08749639,82.214,82.174,5.72638364]
[1771433829694,6.08749639,82.214,82.181,10.9563]
[1771433830792,6.08749639,82.211,82.174,5.72638364]
[1771433830992,6.08749639,82.211,82.148,75.3725]
[1771433830993,6.08749639,82.199,82.151,5.72638364]
[1771433831193,6.08749639,82.199,82.152,5.72638364]
[1771433831390,6.08749639,82.199,82.165,10.9583]
[1771433831595,6.08749639,82.189,82.14,5.72638364]
[1771433831788,6.08749639,82.189,82.143,10.9614]
[1771433833592,10.9566,82.179,82.135,10.9624]
[1771433833795,6.08749639,82.178,82.135,10.9624]
[1771433834702,6.08749639,82.169,82.135,10.9624]
[1771433834998,6.08749639,82.169,82.125,10.9638]
[1771433835197,6.08749639,82.169,82.116,5.72638364]
[1771433835388,3.03035046,82.18,82.132,5.46383103]